Cogmind - Beta 13 X1 @@@ ROGUE MODE // 2023.11.29 @ 18:14:35 Player: f3-rnm Result: Destroyed by T4-XI0(R) with Subdweller Beam Cannon Performance ------------- Evolutions (0) 0 Regions Visited (3) 600 Robots Destroyed (25) 125 Value Destroyed (704) 704 Prototype IDs (0) 0 Alien Tech Used (0) 0 Bonus (0) 0 TOTAL SCORE: 1429 Bonus ------- None Cogmind --------- Core Integrity 0/250 Matter 295/300 Energy 100/100 System Corruption 1% Temperature Cool (9) Movement Core (300) Ox5 Location -10/Subcaves Parts ------- > --- POWER (1) -------- (None) > --- PROPULSION (2) --- (None) > --- UTILITY (2) ------ Light Armor Plating Light Armor Plating > --- WEAPON (2) ------- Subdweller Beam Cannon Battle Cannon > --- INVENTORY (5) ---- Aluminum Leg Aluminum Leg Subdweller Machine Gun Barrage Gun Barrage Gun Peak State ------------ > --- POWER ------------ Ion Engine > --- PROPULSION ------- Aluminum Leg Aluminum Leg > --- UTILITY ---------- High-capacity Storage Unit Hardened Medium Armor Plating > --- WEAPON ----------- Battle Cannon Assault Cannon > --- INVENTORY -------- Ion Engine Aluminum Leg Aluminum Leg Compact Wheel Heat Sink Improved Heat Sink Large Storage Unit Huge Storage Unit High-capacity Matter Pod Structural Scanner Targeting Computer Improved Utility Shielding Light Armor Plating Light Armor Plating Light Armor Plating Improved Light Armor Plating Assault Rifle Light Assault Rifle Light Assault Rifle Light Assault Rifle [Rating: 14] Favorites ----------- Power Ion Engine Engine Ion Engine Propulsion Aluminum Leg Treads Light Treads Leg Aluminum Leg Utility High-capacity Storage Unit Storage High-capacity Storage Unit Processor Targeting Computer Protection Light Armor Plating Weapon Light Assault Rifle Energy Gun Medium Laser Energy Cannon Subdweller Beam Cannon Ballistic Gun Light Assault Rifle Ballistic Cannon Assault Cannon Build | -11 -10 -10 -10 ------- Run | Jun Mat Min Sub Slots Evolved . | . . . . Power . | . . . . Propulsion . | . . . . Utility . | . . . . Weapon . | . . . . Parts Attached 39 | 6 13 8 12 Power 4 | 1 2 1 . Engine 4 | 1 2 1 . Core . | . . . . Reactor . | . . . . Propulsion 9 | 2 4 3 . Treads 6 | 2 4 . . Leg 3 | . . 3 . Wheel . | . . . . Hover . | . . . . Flight . | . . . . Utility 12 | 1 4 2 5 Device . | . . . . Storage 4 | 1 3 . . Processor 1 | . 1 . . Hackware . | . . . . Protection 7 | . . 2 5 Artifact . | . . . . Weapon 14 | 2 3 2 7 Energy Gun 4 | 1 2 . 1 Energy Cannon 1 | . . . 1 Ballistic Gun 6 | 1 1 1 3 Ballistic Cannon 3 | . . 1 2 Launcher . | . . . . Special Weapon . | . . . . Impact Weapon . | . . . . Slashing Weapon . | . . . . Piercing Weapon . | . . . . Special Melee Weapon . | . . . . Unidentified Prototypes . | . . . . Parts Lost 15 | . 1 5 9 Power 2 | . . 1 1 Propulsion 4 | . . 2 2 Utility 3 | . . . 3 Weapon 6 | . 1 2 3 Highest Loss Streak 5 | . 1 5 5 To Critical Strikes . | . . . . Average Slot Usage (%) 87 | . 90 84 86 Engine 12 | . 13 12 10 Treads 10 | . 27 4 . Leg 16 | . . 23 22 Storage 11 | . 14 14 6 Processor 4 | . 9 3 . Protection 10 | . . 10 19 Energy Gun 4 | . 10 2 . Ballistic Gun 12 | . 13 12 12 Ballistic Cannon 3 | . . . 11 Naked Turns . | . . . . Heaviest Build 88 | 13 88 59 60 Greatest Support 40 | 40 40 40 20 Greatest Overweight (x) 26 | . 26 2 5 Average Overweight (x) 1 | . . 1 1 Largest Inventory Capacity 25 | 8 25 20 20 Average Capacity 16 | 7 16 20 12 Most Carried 20 | 3 20 20 20 Average Carried 14 | 1 12 19 11 Final Capacity 20 | 8 20 20 5 Final Carried 20 | 2 20 19 5 Class Distribution -------------------- 100% | Mutant Dominant Class ---------------- Mutant | -10/Materials Mutant | -10/Mines Mutant | -10/Subcaves Resources | -11 -10 -10 -10 ----------- Run | Jun Mat Min Sub Matter Collected 1160 | 146 259 261 494 Remotely . | . . . . Salvage Created 682 | . 458 26 198 Parts 44 | . 32 1 11 Haulers Intercepted 1 | . 1 . . Recyclers Shooed 2 | . . 2 . Parts Field Recycled . | . . . . Retrieved Matter . | . . . . Parts Self-Destructed 9 | . . . 9 Prevented . | . . . . Kills | -11 -10 -10 -10 ------- Run | Jun Mat Min Sub Combat Hostiles Destroyed 19 | . 11 . 8 Guns 15 | . 11 . 4 Cannons 3 | . . . 3 Classes Destroyed 9 | . 6 1 2 Builder 2 | . 2 . . Tunneler 1 | . . 1 . Hauler 1 | . 1 . . Operator 1 | . 1 . . Watcher 1 | . 1 . . Swarmer 3 | . 3 . . Grunt 8 | . 8 . . Sentry 1 | . . . 1 Subdweller 7 | . . . 7 Best Kill Streak 7 | . 7 1 2 Combat Bots Only 7 | . 7 . 2 Max Kills in Single Turn 1 | . 1 1 1 Gunslinging . | . . . . Exploded . | . . . . Melee . | . . . . Uniques/NPCs Destroyed . | . . . . Combat | -11 -10 -10 -10 -------- Run | Jun Mat Min Sub Damage Taken 2272 | . 350 523 1399 Core 252 | . 10 87 155 Absorbed by Shields . | . . . . Regen/Repaired (Parts) 51 | . 51 . . Core Remaining (%) 100 | 100 . . . Volleys Fired 148 | . 78 8 62 Largest 2 | . 2 2 2 Hottest 90 | . 90 70 85 Shots Fired 265 | . 133 18 114 Gun 209 | . 133 18 58 Cannon 56 | . . . 56 Launcher . | . . . . Special . | . . . . Kinetic 196 | . 74 11 111 Thermal 69 | . 59 7 3 Explosive . | . . . . Electromagnetic . | . . . . Robot Hit Streak 43 | . 14 7 43 Robot Miss Streak 4 | . 4 3 1 Penetration Max . | . . . . Secondary Targets 1 | . 1 . . Max Gunslinging Chain 1 | . 1 . . Shots Hit Robots 163 | . 78 10 75 Core Hits 57 | . 31 8 18 Critical Kills . | . . . . Critical Parts Destroyed 2 | . 1 . 1 Critical Strikes 8 | . 5 . 3 Burn 4 | . 4 . . Destroy 3 | . 1 . 2 Blast 1 | . . . 1 Melee Attacks . | . . . . Impact . | . . . . Slashing . | . . . . Piercing . | . . . . Sneak Attacks . | . . . . Combat Hostiles . | . . . . Follow-up Attacks . | . . . . Damage Inflicted 2261 | . 818 152 1291 Guns 1344 | . 806 98 440 Cannons 851 | . . . 851 Explosions . | . . . . Melee . | . . . . Ramming 66 | . 12 54 . Kinetic 1626 | . 342 34 1250 Thermal 569 | . 464 64 41 Explosive . | . . . . Electromagnetic . | . . . . Impact . | . . . . Slashing . | . . . . Piercing . | . . . . Highest Corruption 1 | . 1 1 1 Average Corruption 1 | . 1 1 1 Corruption Purged . | . . . . Corruption Blocked . | . . . . Effects 44 | . 14 18 12 Message Errors 16 | . 7 5 4 Matter Fused 7 | . 2 2 3 Heat Flow Errors 6 | . 2 3 1 Energy Discharges 4 | . 2 1 1 Data Loss (minor) 5 | . . 4 1 Data Loss (major) 1 | . 1 . . Misfires 5 | . . 3 2 Overload Shots . | . . . . Overflow Damage . | . . . . Projectiles . | . . . . Explosions . | . . . . Melee . | . . . . Knockbacks 14 | . . 1 13 Impact 1 | . . 1 . Kinetic 10 | . . . 10 Secondary 3 | . . . 3 Self-Inflicted Damage . | . . . . Shots . | . . . . Rammed 2 | . 2 . . Targets Rammed 23 | . 3 19 1 Kicked 20 | . . 19 1 Crushed 1 | . 1 . . Highest Temperature 324 | . 317 324 102 Average Temperature 76 | . 76 95 13 Received Heat Transfer 456 | . 177 . 279 Effects 1 | . 1 . . Shutdowns 1 | . 1 . . Siege Activations . | . . . . Robots Corrupted . | . . . . Combat Hostiles . | . . . . Parts Fried . | . . . . Impact Corruptions . | . . . . Robots Melted . | . . . . Combat Hostiles . | . . . . Parts Melted 1 | . . . 1 Heat Transferred 1900 | . 1665 185 50 Parts Sabotaged . | . . . . Parts Stolen . | . . . . Parts Stripped . | . . . . Power Chain Reactions . | . . . . Missiles Intercepted . | . . . . Alert | -11 -10 -10 -10 ------- Run | Jun Mat Min Sub Peak Influence 237 | . 237 13 . Initial 8 | . . 8 . Average 30 | . 66 1 . Maximum Alert Level 1 | . 1 . . Low Security (%) 92 | 100 83 100 . Level 1 7 | . 16 . . Level 2 . | . . . . Level 3 . | . . . . Level 4 . | . . . . Level 5 . | . . . . High Security . | . . . . Max Security . | . . . . Squads Dispatched 4 | . 4 . . Investigation 2 | . 2 . . Extermination . | . . . . Reinforcement 2 | . 2 . . Assault . | . . . . Garrison . | . . . . Intercept . | . . . . Searches Triggered . | . . . . Construction Impeded . | . . . . Haulers Reinforced . | . . . . Active Scanning Responses . | . . . . Cargo Convoy Interrupts . | . . . . Stealth | -11 -10 -10 -10 --------- Run | Jun Mat Min Sub Distress Signals 5 | . 5 . . Communications Jammed . | . . . . Distress Signals . | . . . . Times Spotted 49 | . 30 9 10 Peak Tracking Total 7 | . 7 5 2 Tactical Retreats 1 | . 1 . . Traps | -11 -10 -10 -10 ------- Run | Jun Mat Min Sub Traps Triggered 4 | . 4 . . Indirectly . | . . . . Trap Hack Attempts . | . . . . Triggered . | . . . . Disarmed . | . . . . Reprogrammed . | . . . . Reused . | . . . . Traps Extracted . | . . . . Installed . | . . . . Triggered . | . . . . Machines | -11 -10 -10 -10 ---------- Run | Jun Mat Min Sub Machines Disabled . | . . . . Max in Single Turn . | . . . . Machines Repaired . | . . . . Machines Sabotaged . | . . . . Overloaded Fab Kills . | . . . . Hacking | -11 -10 -10 -10 --------- Run | Jun Mat Min Sub Machines Accessed 7 | . 6 1 . Terminals 5 | . 5 . . Fabricators . | . . . . Repair Stations 1 | . 1 . . Recycling Units . | . . . . Scanalyzers . | . . . . Garrison Access . | . . . . Total Hacks 14 | . 13 1 . Successful 5 | . 4 1 . Failed 9 | . 9 . . Catastrophic . | . . . . Database Lockouts . | . . . . Manual 7 | . 7 . . Terminals 9 | . 9 . . Fabricators . | . . . . Repair Stations 4 | . 4 . . Recycling Units . | . . . . Scanalyzers . | . . . . Garrison Access . | . . . . Terminal Hacks 3 | . 2 1 . Robot Analysis 1 | . 1 . . Open Door 1 | . . 1 . Recall Investigation 1 | . 1 . . Fabricator Hacks . | . . . . Repair Station Hacks 2 | . 2 . . Scan Component 1 | . 1 . . Repair 1 | . 1 . . Recycling Unit Hacks . | . . . . Scanalyzer . | . . . . Garrison Access Hacks . | . . . . Unauthorized Hacks . | . . . . Terminals . | . . . . Fabricators . | . . . . Repair Stations . | . . . . Recycling Units . | . . . . Scanalyzers . | . . . . Garrison Access . | . . . . Data Cores Recovered . | . . . . Used . | . . . . Hacking Detections 6 | . 6 . . Full Trace Events 1 | . 1 . . Feedback Events 1 | . 1 . . Corruption 1 | . 1 . . Feedback Blocked . | . . . . Robot Schematics Acquired . | . . . . Robots Built . | . . . . Authchips . | . . . . Time . | . . . . Total Robot Build Rating . | . . . . Part Schematics Acquired . | . . . . Parts Built . | . . . . Authchips . | . . . . Time . | . . . . Total Part Build Rating . | . . . . Parts Repaired 1 | . 1 . . Time 26 | . 26 . . Parts Recycled . | . . . . Recycled Matter . | . . . . Retrieved Matter . | . . . . Retrieved Components . | . . . . Parts Scanalyzed . | . . . . Part Schematics Acquired . | . . . . Parts Damaged . | . . . . Bothacking | -11 -10 -10 -10 ------------ Run | Jun Mat Min Sub Used RIF Installer . | . . . . Robots Hacked . | . . . . Non-combat . | . . . . Combat . | . . . . Robot Hacks Applied . | . . . . Relay Couplers Released . | . . . . Fabnet Peak Effective % . | . . . . Robots Rewired . | . . . . Allies Hacked . | . . . . Hacks Repelled . | . . . . Allies | -11 -10 -10 -10 -------- Run | Jun Mat Min Sub Total Allies . | . . . . Largest Group . | . . . . Highest-Rated Group . | . . . . Highest-Rated Ally . | . . . . Total Orders . | . . . . Ally Attacks . | . . . . Total Damage . | . . . . Kills . | . . . . Allies Corrupted . | . . . . Allies Melted . | . . . . Intel | -11 -10 -10 -10 ------- Run | Jun Mat Min Sub Robot Analysis Total 1 | . 1 . . Derelict Logs Recovered 4 | . . 2 2 Drone Launches . | . . . . Drone Recoveries . | . . . . Exploration | -11 -10 -10 -10 ------------- Run | Jun Mat Min Sub Turns Passed 5925 | 96 1807 2207 1815 Spaces Moved 2349 | 57 704 832 756 Core 88 | 7 4 . 77 Treads 876 | 50 700 126 . Legs 1385 | . . 706 679 Wheels . | . . . . Hover . | . . . . Flight . | . . . . Fastest Speed 50 | 50 160 190 120 Average Speed 224 | 146 211 252 211 Slowest Speed 1350 | 160 1350 260 300 Overloaded Moves . | . . . . Propulsion Burnouts . | . . . . Robots Hopped . | . . . . Cave-ins Triggered . | . . . . Exploration Rate (%) 64 | 4 97 99 59 Regions Visited 3 Branch Regions 2 Pre-discovered Areas 2 | . . . 2 Known Exits Taken . | . . . . Unknown Exits Taken 3 | 1 1 1 . Scrap Searched 5 | . . 1 4 Spaces Dug 1 | . . . 1 Terrain Destroyed 2 | . . . 2 Melee . | . . . . Projectile 2 | . . . 2 AOE . | . . . . Terrain Rammed . | . . . . Walls Destroyed . | . . . . Machines Disabled . | . . . . Actions | -11 -10 -10 -10 --------- Run | Jun Mat Min Sub Total 2749 | 70 899 908 872 Wait 110 | . 73 17 20 Move 2346 | 56 703 831 756 Hop . | . . . . Pick Up 57 | 8 27 10 12 Fast Attach 5 | . 1 . 4 Attach 26 | 6 9 5 6 Detach . | . . . . Swap 8 | . 3 3 2 Drop 16 | . 2 5 9 Fire 148 | . 78 8 62 Melee . | . . . . Ram . | . . . . Kick 20 | . . 19 1 Crush 3 | . 3 . . Escape Stasis . | . . . . Rewire 10 | . . 10 . Trap . | . . . . Miscellaneous . | . . . . Route ------- -11/Junkyard -10/Materials (discovered 5 exits: [*Mat x3] / *Min / [*Sub]) -10/Mines (discovered 4 exits: [*Mat x2] / [*Exi] / [*Sub]) -10/Subcaves (discovered 1 exit: [*Mat]) History --------- Turn | Location | Event 6 | -11/Junkyard | Discovered new exit (range 15) 97 | -11/Junkyard | Entered Materials 216 | -10/Materials | Destroyed 7 combat bots 307 | -10/Materials | Build established: Mutant 433 | -10/Materials | Repaired Ion Engine 454 | -10/Materials | Discovered new exit (range 5) 496 | -10/Materials | Discovered new exit (range 8) 740 | -10/Materials | Discovered new exit (range 15) 800 | -10/Materials | Discovered new exit (range 16) 900 | -10/Materials | Derelicts attacked the area 1272 | -10/Materials | Discovered new exit (range 5) 1904 | -10/Materials | Entered Mines 2106 | -10/Mines | Deemed a non-threat by the Exiles lab entrance 2221 | -10/Mines | Assembled infested the area 2236 | -10/Mines | Discovered new exit (range 8) 2268 | -10/Mines | Lost 5 parts (1p2n2w) 2303 | -10/Mines | Met 8R-AWN 2387 | -10/Mines | Met a Derelict who couldn't figure out how to use a Trap Extractor 2628 | -10/Mines | Discovered new exit (range 13) 3578 | -10/Mines | Learned 2 Materials zone layouts 4007 | -10/Mines | Discovered new exit (range 5) 4082 | -10/Mines | Discovered new exit (range 9) 4111 | -10/Mines | Entered Subcaves 4115 | -10/Subcaves | A swath of the cavern ceiling suddenly collapsed 4183 | -10/Subcaves | Shifting Twisted Machinery released Sub. Laser 4184 | -10/Subcaves | Shifting Twisted Machinery released Battle Cannon 4418 | -10/Subcaves | Core integrity fell below 50% 4688 | -10/Subcaves | Shifting Twisted Machinery released Flamer 5233 | -10/Subcaves | Discovered new exit (range 5) 5474 | -10/Subcaves | A swath of the cavern ceiling suddenly collapsed 5504 | -10/Subcaves | Lost 5 parts (1p1n1u2w) 5672 | -10/Subcaves | Core integrity fell below 20% 5926 | -10/Subcaves | Destroyed by T4-XI0(R) with Subdweller Beam Cannon Last Messages --------------- 05701_ Found Barrage Gun. 05701_ Found Sub. Monowheel. 05701_ Found 36 Matter. 05704_ Searching scrap... 05704_ Found Battle Cannon. 05704_ Found Flamer. 05704_ Found 17 Matter. 05707_ Searching scrap... 05707_ Found Sub. Machine Gun. 05707_ Found Barrage Gun. 05707_ Found 20 Matter. 05713_ Acquired Barrage Gun. 05717_ Acquired Sub. Machine Gun. 05730_ Dropped Battle Rifle. 05731_ Acquired Battle Cannon. 05738_ Dropped Sub. Laser. 05739_ Acquired Barrage Gun. 05740_ Acquired 10 matter. 05791_ System corrupted: FCS attempts to trigger Battle Cannon. 05791_ System corrupted: Battle Cannon misfires. Map ----- +----------------------------------------------------+ | ?????????# &#=%=[ ### #???????? | | ?????????# "# #" ### ##??###??? | | ?????????#%#### ## # ## ###?### #??? | | ?????????###??## ### ###?###???# #??? | | ???????????????# ##" ##??####??# #??? | | ???????????????# ## ##?# ##?# #??? | | ???????????????# # #?# ### ##?? | | ???????????????# ## #?# ## ##? | | ???????????????## # #### ## ## | | ????????????????####### ## # | | ??????????????????????### ## ## | | ????????????????????????# ## #### | | ????????????????????????# ## #??# | | ????????????????????????## #??### | | ????????????????????????## ##????# | | ????????????????????????# #?????# | | ????????????????????????# #????## | | ???????????????????????## ## ##????# | | ??????????????????###### ### ##?????# | | ????????????????### ## ## #??????## | | ??????????????### ### ## #?????# | | ??????????????# ## # #????## | | ???????????????# ## ######????# | | ???????????????# ####?????????## | | ???????????????## #??????????##" | | ????????????????## @ #### #?????????## " | | ?????????????????## ##??? #????????#""" | | ?????????????????# ###???? ???????#""" | | ?????????????????# #????? "????# ""# | | ?????????????????#^ #????? "????# ""? | | ????????????????? " #????? ""?? "?? | | ????????????????#" ^ ?????? ## "? ??? | | ???????????????? " #????? ##? ??##???? | | ???????????????# ## R"??????##??? ????????? | | ???????????????### ?? " "???????????????????? | | ?????????????????##??" # #??????????????????? | | ????????????????????? "###??????????????????? | | ????????????????????? "????????????????????? | | ????????????????????? ????????????????????? | | ????????????????????? #????????????????????? | | ????????????????????????????????????????????? | | ????????????????????????????????????????????? | | ????????????????????????????????????????????? | | ????????????????????????????????????????????? | | ????????????????????????????????????????????? | | ????????????????????????????????????????????? | | ????????????????????????????????????????????? | | ????????????????????????????????????????????? | | ????????????????????????????????????????????? | | ????????????????????????????????????????????? | +----------------------------------------------------+ Best States ------------- Heat Dissipation 25 Energy Generation 10 Energy Capacity 250 Matter Stores 300 Matter Capacity 300 Sight Range 16 Terrain Scan Density 10 Armor Coverage 800 Evasion (%) 55 Targeting Accuracy 5 Recoil Reduction 2 Item Schematics ----------------- None Robot Schematics ------------------ None Fabricated ------------ Nothing Alien Tech Used ----------------- None Achievements -------------- None Challenges ------------ None Game ------ Seed BurstRagnarokShockpuncher Manual? 0 Play Time 00:19:28 Cumulative 116.5 hours Start 2023.11.29 @ 17:56:36 End 2023.11.29 @ 18:14:35 Sessions 1 Manual Loads 0 Difficulty Rogue Special Mode None Game No. 128 Rogue 92 Adventurer 36 Explorer 0 Win Type - Total 7 Types 2/0/5/0/0/0/0/0/0 Lore% 54 Gallery% 75 Achievement% 62 Wizard Run 0 Options --------- ASCII 0 Keyboard 0 Movement Mouse Keybinds 0 Fullscreen 1 Font 18/SmallcapsGlow Map View 76x50 Tactical HUD 1 Map Filters NONE Filters NONE Steam 1 RUN: 601bd6c6-bfd3-464a-9dae-7c5e8f264290